Cogmind - Beta 16 @@@ ROGUE MODE // 2026.01.24 @ 11:12:01 Player: CloudSeaKing Result: Destroyed by 32-30J(R) with Subdweller Machine Gun Performance ------------- Evolutions (0) 0 Regions Visited (2) 400 Robots Destroyed (31) 155 Value Destroyed (800) 800 Prototype IDs (14) 280 Alien Tech Used (0) 0 Bonus (0) 0 TOTAL SCORE: 1635 Bonus ------- None Cogmind --------- Core Integrity 0/250 Matter 4/300 Energy 100/100 System Corruption 0% Temperature Cool (0) Movement Core (350) Ox6 Location -10/Subcaves Parts ------- > --- POWER (1+1) ------ Subdweller Power Source (+) Subdweller Power Source > --- PROPULSION (2) --- Subdweller Monowheel > --- UTILITY (2+1) ---- Subdweller Optics (+) Rainbow Chip > --- WEAPON (2+1) ----- Assault Rifle (+) Light Cannon Battle Cannon > --- INVENTORY (5) ---- Subdweller Power Source Scrap Shield Assault Rifle Subdweller Shrapnel Launcher Peak State ------------ > --- POWER ------------ Ion Engine Subdweller Power Source > --- PROPULSION ------- Light Treads Subdweller Monowheel Subdweller Monowheel > --- UTILITY ---------- Large Storage Unit Subdweller Optics Rainbow Chip > --- WEAPON ----------- Assault Rifle Battle Cannon Battle Cannon > --- INVENTORY -------- Subdweller Power Source Disposable Heat Sink Medium Matter Pod Scrap Shield Subdweller Laser Assault Rifle Subdweller Machine Gun Light Cannon Light Cannon Scrap Shield Fragment Scrap Shield Fragment [Rating: 31] Favorites ----------- Power Ion Engine Engine Ion Engine Propulsion Light Treads Treads Light Treads Wheel Subdweller Monowheel Utility Large Storage Unit Device Seismic Detector Storage Large Storage Unit Processor Rainbow Chip Weapon Battle Cannon Energy Gun Medium Laser Ballistic Gun Assault Rifle Ballistic Cannon Battle Cannon Build | -11 -10 -10 ------- Run | Yrd Mat Sub Slots Evolved . | . . . Power . | . . . Propulsion . | . . . Utility . | . . . Weapon . | . . . Parts Attached 28 | 7 5 16 Power 7 | 1 2 4 Engine 7 | 1 2 4 Core . | . . . Reactor . | . . . Propulsion 6 | 2 . 4 Treads 4 | 2 . 2 Leg . | . . . Wheel 2 | . . 2 Hover . | . . . Flight . | . . . Utility 7 | 2 1 4 Device 4 | 1 . 3 Storage 2 | 1 1 . Processor 1 | . . 1 Hackware . | . . . Protection . | . . . Artifact . | . . . Weapon 8 | 2 2 4 Energy Gun 1 | 1 . . Energy Cannon . | . . . Ballistic Gun 3 | 1 1 1 Ballistic Cannon 4 | . 1 3 Launcher . | . . . Special Weapon . | . . . Impact Weapon . | . . . Slashing Weapon . | . . . Piercing Weapon . | . . . Special Melee Weapon . | . . . Unidentified Prototypes . | . . . Parts Lost 11 | . 1 10 Power 2 | . 1 1 Propulsion 5 | . . 5 Utility 3 | . . 3 Weapon 1 | . . 1 Highest Loss Streak 5 | . 1 5 To Critical Strikes . | . . . Average Backups 10 | 4 11 10 Power 1 | . . 1 Propulsion 1 | 2 2 . Utility 3 | . 4 3 Weapon 3 | . 3 4 Tool/Special . | . . . Unused Backups 23 | . 6 17 Power 2 | . . 2 Propulsion 5 | . 5 . Utility 7 | . . 7 Weapon 9 | . 1 8 Tool/Special . | . . . Average Slot Usage (%) 95 | . 99 93 Engine 15 | . 13 16 Treads 18 | . 27 12 Wheel 6 | . . 10 Device 11 | . 13 10 Storage 10 | . 14 8 Processor 3 | . . 5 Ballistic Gun 11 | . 13 10 Ballistic Cannon 14 | . 12 16 Peak Build Rating 31 | 8 8 31 Average Rating 15 | 6 7 19 On Entrance 5 | . 8 8 Avg Prop Armor Cover (%) 8 | . . 8 Naked Turns . | . . . Heaviest Build 40 | 14 31 40 Greatest Support 40 | 40 40 40 Greatest Overweight (x) 13 | 1 1 13 Average Overweight (x) . | . . 1 Largest Inventory Capacity 15 | 8 15 15 Average Capacity 12 | 7 12 12 Most Carried 15 | 8 15 15 Average Carried 11 | 4 11 11 Final Capacity 15 | 8 15 5 Final Carried 15 | 8 15 5 Class Distribution -------------------- 63% | Mutant 34% | Skirmisher Dominant Class ---------------- Mutant | -10/Materials Skirmisher | -10/Subcaves Resources | -11 -10 -10 ----------- Run | Yrd Mat Sub Matter Collected 1052 | 240 372 440 Remotely . | . . . Salvage Created 857 | 56 481 320 Parts 73 | 10 35 28 Haulers Intercepted 2 | . 2 . Recyclers Shooed 1 | . 1 . Parts Field Recycled . | . . . Retrieved Matter . | . . . Parts Self-Destructed 11 | . . 11 Prevented . | . . . Parts Restored . | . . . Kills | -11 -10 -10 ------- Run | Yrd Mat Sub Combat Hostiles Destroyed 21 | . 8 13 Guns 8 | . 4 4 Cannons 13 | . 4 9 Classes Destroyed 9 | 1 6 2 Tunneler 3 | 3 . . Hauler 2 | . 2 . Recycler 2 | . 2 . Operator 2 | . 2 . Watcher 1 | . 1 . Swarmer 4 | . 2 2 Grunt 6 | . 6 . Sentry 1 | . . 1 Subdweller 10 | . . 10 Best Kill Streak 2 | 1 2 2 Combat Bots Only 2 | . 2 2 Max Kills in Single Turn 1 | 1 1 1 Gunslinging . | . . . Exploded . | . . . Melee . | . . . Uniques/NPCs Destroyed . | . . . Combat | -11 -10 -10 -------- Run | Yrd Mat Sub Hostile Shots Fired 137 | . 42 95 Missed 44 | . 16 28 Hits 93 | . 26 67 Projectile 93 | . 26 67 Critical Strikes 4 | . 3 1 Damage Taken 1572 | . 326 1246 Core 264 | . 52 212 Absorbed by Shields . | . . . Core Remaining (%) 100 | 100 . . Volleys Fired 139 | 10 47 82 Largest 3 | 2 2 3 Hottest 86 | 70 70 86 Shots Fired 235 | 20 85 130 Gun 107 | 20 58 29 Cannon 128 | . 27 101 Launcher . | . . . Special . | . . . Kinetic 205 | 10 65 130 Thermal 30 | 10 20 . Explosive . | . . . Electromagnetic . | . . . Robot Hit Streak 14 | 4 9 14 Robot Miss Streak 7 | 2 7 3 Penetration Max . | . . . Secondary Targets . | . . . Shots Hit Robots 128 | 11 46 71 Core Hits 53 | 3 24 26 Critical Kills . | . . . Critical Parts Destroyed . | . . . Critical Strikes 8 | 2 3 3 Burn 4 | 2 2 . Blast 4 | . 1 3 Melee Attacks . | . . . Impact . | . . . Slashing . | . . . Piercing . | . . . Sneak Attacks . | . . . Combat Hostiles . | . . . Follow-up Attacks . | . . . Damage Inflicted 1929 | 121 605 1203 Guns 696 | 121 341 234 Cannons 1214 | . 245 969 Explosions . | . . . Melee . | . . . Ramming 19 | . 19 . Kinetic 1634 | 32 399 1203 Thermal 276 | 89 187 . Explosive . | . . . Electromagnetic . | . . . Impact . | . . . Slashing . | . . . Piercing . | . . . Highest Corruption . | . . . Average Corruption . | . . . Corruption Purged . | . . . Corruption Blocked . | . . . Overload Shots . | . . . Overflow Damage . | . . . Projectiles . | . . . Explosions . | . . . Melee . | . . . Knockbacks 13 | . 3 10 Impact . | . . . Kinetic 13 | . 3 10 Secondary . | . . . Self-Inflicted Damage . | . . . Shots . | . . . Rammed 5 | . 5 . Targets Rammed 5 | . 5 . Kicked . | . . . Crushed . | . . . Highest Temperature 247 | 50 162 247 Average Temperature 37 | 23 32 126 Received Heat Transfer 656 | . 174 482 Siege Activations . | . . . Martial Activations . | . . . Shielding Activations . | . . . Robots Disrupted . | . . . Combat Hostiles . | . . . Robots Corrupted . | . . . Combat Hostiles . | . . . Parts Fried . | . . . Impact Corruptions . | . . . Robots Melted . | . . . Combat Hostiles . | . . . Parts Melted 2 | . 1 1 Heat Transferred 1110 | 407 703 . Parts Sabotaged . | . . . Parts Stolen . | . . . Parts Stripped . | . . . Power Chain Reactions . | . . . Alert | -11 -10 -10 ------- Run | Yrd Mat Sub Maximum Alert Level . | . . . Low Security (%) 100 | 100 100 . Level 1 . | . . . Level 2 . | . . . Level 3 . | . . . Level 4 . | . . . Level 5 . | . . . High Security . | . . . Max Security . | . . . Peak Influence 75 | 5 75 . Initial . | . . . Average 8 | . 10 . Influence Increases 410 | 15 295 100 Destroy 0b10 Robot/C 220 | . 160 60 Destroy 0b10 Robot/NC 50 | 15 35 . Destroy Leader 56 | . 46 10 Successful Hack 24 | . 24 . Lose Combat Pursuer 60 | . 30 30 Influence Decreases 410 | 15 295 100 Time Decay 362 | 15 247 100 Lost Part 10 | . 10 . Purge Threat 38 | . 38 . Squads Dispatched 2 | . 2 . Investigation 1 | . 1 . Extermination . | . . . Reinforcement 1 | . 1 . Assault . | . . . Garrison . | . . . Intercept . | . . . Searches Triggered . | . . . Construction Impeded . | . . . Haulers Reinforced . | . . . Active Scanning Responses . | . . . Cargo Convoy Interrupts . | . . . Stealth | -11 -10 -10 --------- Run | Yrd Mat Sub Distress Signals 3 | . 3 . Communications Jammed . | . . . Distress Signals . | . . . Times Spotted 44 | . 25 19 Peak Tracking Total 4 | . 4 3 Tactical Retreats 3 | . 2 1 Traps | -11 -10 -10 ------- Run | Yrd Mat Sub Traps Triggered 6 | . 6 . Indirectly . | . . . Trap Hack Attempts . | . . . Triggered . | . . . Disarmed . | . . . Reprogrammed . | . . . Reused . | . . . Traps Extracted . | . . . Installed . | . . . Triggered . | . . . Machines | -11 -10 -10 ---------- Run | Yrd Mat Sub Machines Disabled 1 | . . 1 Max in Single Turn 1 | . . 1 Machines Repaired . | . . . Machines Dismantled . | . . . Machines Sabotaged . | . . . Overloaded Fab Kills . | . . . Hacking | -11 -10 -10 --------- Run | Yrd Mat Sub Machines Accessed 9 | . 8 1 Terminals 7 | . 7 . Fabricators . | . . . Repair Stations . | . . . Recycling Units 1 | . 1 . Scanalyzers . | . . . Garrison Access . | . . . Total Hacks 34 | . 25 9 Successful 24 | . 15 9 Failed 9 | . 9 . Catastrophic 1 | . 1 . Database Lockouts 1 | . 1 . Manual 20 | . 20 . Terminals 23 | . 23 . Fabricators . | . . . Repair Stations . | . . . Recycling Units 2 | . 2 . Scanalyzers . | . . . Garrison Access . | . . . Terminal Hacks 13 | . 4 9 Record 8 | . . 8 Robot Analysis 1 | . 1 . Prototype ID Bank 1 | . 1 . Unreport Threat 1 | . 1 . Hauler Manifests 1 | . 1 . Proto ID Catalog 1 | . . 1 Fabricator Hacks . | . . . Repair Station Hacks . | . . . Recycling Unit Hacks 2 | . 2 . Retrieve Matter 1 | . 1 . Retrieve Components 1 | . 1 . Scanalyzer . | . . . Garrison Access Hacks . | . . . Unauthorized Hacks 9 | . 9 . Terminals 9 | . 9 . Botnet 4 | . 4 . Skim 5 | . 5 . Fabricators . | . . . Repair Stations . | . . . Recycling Units . | . . . Scanalyzers . | . . . Garrison Access . | . . . Data Cores Recovered . | . . . Used . | . . . Hacking Detections 6 | . 6 . Full Trace Events 1 | . 1 . Feedback Events . | . . . Feedback Blocked . | . . . Robot Schematics Acquired . | . . . Robots Built . | . . . Authchips . | . . . Time . | . . . Total Robot Build Rating . | . . . Part Schematics Acquired . | . . . Parts Built . | . . . Authchips . | . . . Time . | . . . Total Part Build Rating . | . . . Part Studies Acquired . | . . . Parts Repaired . | . . . Time . | . . . Parts Recycled . | . . . Recycled Matter . | . . . Retrieved Matter . | . . . Retrieved Components 3 | . 3 . Parts Scanalyzed . | . . . Part Schematics Acquired . | . . . Parts Damaged . | . . . Bothacking | -11 -10 -10 ------------ Run | Yrd Mat Sub Used RIF Installer . | . . . Robots Hacked . | . . . Non-combat . | . . . Combat . | . . . Robot Hacks Applied . | . . . Relay Couplers Released . | . . . Fabnet Peak Effective % . | . . . Robots Rewired . | . . . Allies Hacked . | . . . Hacks Repelled . | . . . Allies | -11 -10 -10 -------- Run | Yrd Mat Sub Total Allies . | . . . Largest Group . | . . . Highest-Rated Group . | . . . Highest-Rated Ally . | . . . Total Orders . | . . . Ally Attacks . | . . . Total Damage . | . . . Kills . | . . . Allies Corrupted . | . . . Allies Melted . | . . . Intel | -11 -10 -10 ------- Run | Yrd Mat Sub Active Infowar (turns) 2996 | 139 1517 1340 Optics 167 | . . 167 Terrain 145 | . . 145 Seismic 2684 | 139 1517 1028 Robot Analysis Total 1 | . 1 . Derelict Logs Recovered 1 | . . 1 Drone Launches . | . . . Drone Recoveries . | . . . Exploration | -11 -10 -10 ------------- Run | Yrd Mat Sub Turns Passed 4584 | 255 1534 2795 Spaces Moved 2216 | 134 829 1253 Core 254 | 7 . 247 Treads 1524 | 127 829 568 Legs . | . . . Wheels 438 | . . 438 Hover . | . . . Flight . | . . . Fastest Speed 50 | 50 160 110 Average Speed 180 | 156 160 196 Slowest Speed 700 | 160 240 700 Overloaded Moves . | . . . Propulsion Burnouts . | . . . Robots Hopped . | . . . Potential Cave-ins . | . . . Cave-ins Triggered . | . . . Exploration Rate (%) 53 | 7 93 59 Regions Visited 2 Branch Regions 1 Pre-discovered Areas 2 | . . 2 Known Exits Taken . | . . . Unknown Exits Taken 2 | 1 1 . Scrap Searched 1 | . . 1 Spaces Dug . | . . . Terrain Destroyed 1 | . . 1 Melee . | . . . Projectile 1 | . . 1 AOE . | . . . Terrain Rammed . | . . . Walls Destroyed . | . . . Machines Disabled . | . . . Actions | -11 -10 -10 --------- Run | Yrd Mat Sub Total 2584 | 158 952 1474 Wait 121 | . 31 90 Move 2214 | 133 828 1253 Hop . | . . . Pick Up 42 | 8 15 19 Fast Attach 22 | 7 12 3 Attach 10 | . 1 9 Detach . | . . . Swap 6 | . 2 4 Drop 25 | . 11 14 Fire 139 | 10 47 82 Melee . | . . . Ram . | . . . Kick . | . . . Crush 5 | . 5 . Escape Stasis . | . . . Rewire . | . . . Trap . | . . . Miscellaneous . | . . . Route ------- -11/Scrapyard -10/Materials (discovered 5 exits: [*Mat x2] / [*Min x2] / *Sub) -10/Subcaves (discovered 1 exit: *Mat) History --------- Turn | Location | Event 8 | -11/Scrapyard | Discovered new exit (range 14) 256 | -11/Scrapyard | Entered Materials 314 | -10/Materials | Build established: Mutant 536 | -10/Materials | Central database locked down 952 | -10/Materials | Discovered new exit (range 13) 970 | -10/Materials | Learned 4 Subcaves zone layouts 1111 | -10/Materials | Learned Storage emergency access door positions 1137 | -10/Materials | Learned Storage stockpile data 1154 | -10/Materials | Learned Storage trap positions 1172 | -10/Materials | Discovered new exit (range 6) 1180 | -10/Materials | Learned 4 Subcaves zone layouts 1216 | -10/Materials | Learned location of 1 exit from Recycling 1264 | -10/Materials | Loaded intel: 1 repair station location 1347 | -10/Materials | Discovered new exit (range 16) 1634 | -10/Materials | Discovered new exit (range 14) 1772 | -10/Materials | Discovered new exit (range 12) 1790 | -10/Materials | Entered Subcaves 1791 | -10/Subcaves | Approached by a straggling Scientist 1791 | -10/Subcaves | Identified exit to Materials 1937 | -10/Subcaves | Shifting Twisted Machinery released Sub. Beam Cannon 1939 | -10/Subcaves | Shifting Twisted Machinery released Flamer 1956 | -10/Subcaves | Learned location of Storage (-9) 2243 | -10/Subcaves | Learned location of Zion (-6) 2243 | -10/Subcaves | Met a Zionite searching for "candidates" 2353 | -10/Subcaves | Shifting Twisted Machinery released Battle Cannon 2370 | -10/Subcaves | Shifting Twisted Machinery released Sub. Monowheel 2802 | -10/Subcaves | Shifting Twisted Machinery released Flamer 2803 | -10/Subcaves | Shifting Twisted Machinery released Riot Gun 2821 | -10/Subcaves | Core integrity fell below 50% 2833 | -10/Subcaves | Core integrity fell below 20% 2868 | -10/Subcaves | Lost 5 parts (1p3n1u) 2960 | -10/Subcaves | Visited 4L-MR0's lab 3022 | -10/Subcaves | Found Rainbow Chip 3023 | -10/Subcaves | Attached Rainbow Chip, gained temporary slots: Power, Propulsion, Utility, Weapon 3334 | -10/Subcaves | A swath of the cavern ceiling suddenly collapsed 3343 | -10/Subcaves | Build established: Skirmisher 4585 | -10/Subcaves | Destroyed by 32-30J(R) with Subdweller Machine Gun Last Messages --------------- 04317_ Dropped Disposable Heat Sink. 04323_ Subatomizers dissect the Disposable Heat Sink. 04349_ Acquired Sub. Shrapnel Launcher. 04382_ BE-ZYU(R) knocked back. 04385_ BE-ZYU(R) destroyed. 04392_ Acquired 22 matter. 04406_ Dropped Ion Engine. 04410_ JG-Q2S(R) destroyed. 04417_ Acquired 5 matter. 04421_ Acquired 2 matter. 04452_ Acquired 13 matter. 04463_ Acquired 6 matter. 04466_ Acquired 2 matter. 04571_ DP-5U9(R) knocked back. 04573_ Sub. Power Source shoots sparks and powers down. 04574_ Broken Sub. Monowheel destroyed. 04574_ Temporary Propulsion slot lost. 04574_ 32-30J(R) knocked back. Map ----- +----------------------------------------------------+ | ???????????????????????????????## #????????????? | | ????????????????????????????????## #????????????? | | ?????????????????????????????????# #????????????? | | ?????????????????????????????????## ????????????? | | ?????????????????????????????????## ????????????? | | ????????????????????????????????## ????????????? | | ????????????????????????????????# ????????????? | | ????????????????????????????????# ????????????? | | ????????????????????????????????## #????????????? | | ?????????????????????????????????####????????????? | | ???????????????????????????????????##????????????? | | ???????????????????????????????###?# ????????????? | | ???????????????????????????##### #?##????????????? | | ????????????????????###??### ## #??#????????????? | | ?????????????####???# ##?# ##??#????????????? | | ?????????????????????????????????????????????????? | | ?????????????????????????????????????????????????? | | ?????? ??????????????????????????????????????????? | | ??? ## ??????????????????????????????????????? | | ?? ??????????????????????????????????????? | | ?? ??????????????????????????????????????? | | ? ??????????????????????????????????????? | | ?????????###?####?????????????????????? | | ????????## ### ##????????#?## ??????? | | ????????# #???????? ?????? | | ???# ######### @ #?????? ??????? | | ????# # # ##??? ??????????? | | ????# #### R## #?????????????? | | ### | ##??# R #???????"??????? | | ####??## %% #?????????????? | | ## ###??????###% ## ##?#???????????? | | ### #### #??????????####??##??????????????? | | ?#????## #????????????????????????????????? | | ##????## ## #?????????????#####??????#???????? | | #???## #####????????????## "!##########????? | | #???# #????????????????#""" ##"" #?????? | | ###??# ##???????????????# " # ###?????? | | ##### ##??????????????# " + "X"""#?????? | | " # ## ##?????????????#""" "#"""""""#?????? | | * #?????????????#"""&##########?????? | | = !& ## #?????????????#""" ##?????????#? ?? | | ##& ###?###?????????????#"" ######????????? | | #####???????????????????##"" # #??????? ? | | # ###?????????#?#???#????????#" | ##????????? | | # #?#?????????????????###???## ## #????#???? | | ##????????????????????#?########" ###??????? | | #????????????######????## ### " ###????? | | # #????????????# ##??## " ##???? | | # #?#?##???????# ##?# ########" ##??? | | ### #??????## #?## #?????#" ""? | +----------------------------------------------------+ Best States ------------- Heat Dissipation 25 Energy Generation 20 Energy Capacity 350 Matter Stores 300 Matter Capacity 300 Sight Range 21 Terrain Scan Range 16 Terrain Scan Density 10 Evasion (%) 40 Recoil Reduction 2 Item Schematics ----------------- None Robot Schematics ------------------ None Fabricated ------------ Nothing Repaired ---------- Nothing Studied --------- None Alien Tech Used ----------------- None Achievements -------------- Mistaken Identity Challenges ------------ None Game ------ Seed AntisysMetaField Manual? 0 Play Time 00:26:30 Cumulative 35.2 hours Start 2026.01.24 @ 10:48:03 End 2026.01.24 @ 11:12:01 Sessions 1 Manual Loads 0 Difficulty Rogue Special Mode None Game No. 43 Rogue 43 Adventurer 0 Explorer 0 Win Type - Total 1 Types 1/0/0/0/0/0/0/0/0/0 Lore% 20 Gallery% 29 Achievement% 28 Wizard Run 0 Options --------- Layout 1 ASCII 0 Keyboard 0 Movement Arrows Keybinds 0 Fullscreen 2 Font 32/SmallcapsGlow Map View 50x35 Zoom Use 0% Tactical HUD 1 Map Filters NONE Filters NONE Steam 1 RUN: 87c956c6-469d-41ea-9507-d1dcf889639a